bitfinex-derivatives/quotes_BTCF0:USTF0_20251229
["timestamp","ask_amount","ask_price","bid_price","bid_amount"]
[1767020744340,0.00017156,87409.0,87392.0,0.00017156]
[1767020744539,0.09732,87408.0,87392.0,0.00017156]
[1767020744735,0.00017156,87409.0,87392.0,0.00017156]
[1767020745041,0.15512,87408.0,87392.0,0.00017156]
[1767020746238,0.15512,87408.0,87370.0,0.04174321]
[1767020746541,0.15512,87408.0,87376.0,0.0114581]
[1767020746737,0.0114546,87404.0,87376.0,0.0114581]
[1767020747046,0.30112,87403.0,87376.0,0.0114581]
[1767020747243,0.39844,87403.0,87380.0,0.0114577]
[1767020747433,0.4098947,87403.0,87381.0,0.00017156]
[1767020747838,0.39844,87403.0,87381.0,0.00017156]
[1767020748646,0.39848,87402.0,87381.0,0.00017156]
[1767020748837,0.0578,87401.0,87381.0,0.00017156]
[1767020750358,0.0114557,87396.0,87370.0,0.04174321]
[1767020750751,0.0114557,87396.0,87347.0,0.06123376]
[1767020750752,0.0114573,87384.0,87358.0,0.01155678]
[1767020750952,0.0114584,87375.0,87358.0,9.628e-05]
[1767020751161,0.0114588,87372.0,87338.0,0.00228997]
[1767020751358,0.00017167,87364.0,87347.0,0.011462]
[1767020751552,0.00017167,87364.0,87346.0,0.00017167]
[1767020751553,0.15512,87363.0,87346.0,0.00017167]
[1767020752051,0.00017167,87364.0,87352.0,0.0114613]
[1767020752257,0.05793628,87362.0,87352.0,0.0114613]
[1767020752663,0.05793628,87362.0,87348.0,0.0114618]
[1767020752863,0.05793628,87362.0,87355.0,0.00106473]
[1767020753253,0.05793628,87362.0,87358.0,0.00141966]
[1767020753757,0.05793628,87362.0,87348.0,0.0114618]
[1767020755154,0.05793628,87362.0,87347.0,0.011462]
[1767020755462,0.0114608,87357.0,87338.0,0.00228997]
[1767020755659,0.20768392,87360.0,87327.0,0.0114646]
[1767020755963,0.20768392,87360.0,87325.0,0.0114649]
[1767020756160,0.20768392,87360.0,87328.0,0.0114645]
[1767020756362,0.20768392,87360.0,87324.0,0.011465]
[1767020756557,0.00017167,87351.0,87334.0,0.0114637]
[1767020756753,0.1552,87350.0,87333.0,0.00017167]
[1767020758960,0.1552,87350.0,87337.0,0.0114633]
[1767020759162,0.1552,87350.0,87333.0,0.00017167]
[1767020759568,0.0114618,87349.0,87333.0,0.00017167]
[1767020759768,0.1552,87350.0,87333.0,0.00017167]
[1767020760060,0.1666617,87350.0,87333.0,0.00017167]
[1767020761071,0.1552,87350.0,87333.0,0.00017167]
[1767020761270,0.00017167,87351.0,87338.0,0.0114632]
[1767020761469,9.628e-05,87362.0,87333.0,0.00017167]
[1767020761766,9.628e-05,87362.0,87335.0,0.0114636]
[1767020761974,9.628e-05,87362.0,87350.0,0.0114616]
[1767020762158,0.05784,87361.0,87350.0,0.0114616]
[1767020762361,0.1552,87361.0,87350.0,0.0114616]
[1767020762557,0.1552,87361.0,87334.0,0.0114637]
[1767020762558,9.628e-05,87362.0,87334.0,0.0114637]
[1767020762758,0.1552,87361.0,87353.0,0.0114612]
[1767020763073,0.1552,87361.0,87349.0,0.0114618]
[1767020763373,0.00017167,87364.0,87355.0,0.0114609]
[1767020763571,0.11508,87363.0,87358.0,0.0114605]
[1767020763768,0.24348,87385.0,87344.0,0.0114624]
[1767020763769,0.0114572,87385.0,87344.0,0.0114624]
[1767020763961,0.1552,87384.0,87350.0,0.20768392]
[1767020764273,0.0114575,87382.0,87360.0,0.0114603]
[1767020764469,0.00017167,87380.0,87362.0,0.00017167]
[1767020765173,0.011458,87379.0,87362.0,0.00017167]
[1767020765374,0.0114583,87376.0,87362.0,0.00017167]
[1767020765575,0.05784,87375.0,87362.0,0.00017167]
[1767020765777,0.05784,87375.0,87363.0,0.0114599]
[1767020765965,0.00017167,87380.0,87366.0,0.0114596]
[1767020766165,0.1552,87379.0,87369.0,0.0114591]
[1767020766362,0.1552,87379.0,87365.0,0.0114596]
[1767020766766,0.1552,87379.0,87367.0,0.0114593]
[1767020766967,0.00017167,87380.0,87362.0,0.00012167]
[1767020767168,8e-08,87368.0,87367.0,0.0114594]
[1767020767364,0.05784,87370.0,87367.0,0.0114594]
[1767020767568,0.05784,87371.0,87367.0,0.0114594]
[1767020768178,0.05784,87371.0,87362.0,0.00012167]
[1767020768179,0.05784,87371.0,87362.0,0.01158167]
[1767020768368,0.05784,87371.0,87362.0,0.00012167]
[1767020770076,0.05784,87371.0,87245.0,0.31750781]
[1767020770077,0.05784,87371.0,87342.0,0.0114627]
[1767020770284,0.0114603,87361.0,87331.0,0.06244786]
[1767020770465,0.1552,87360.0,87342.0,0.0114626]
[1767020770878,0.1552,87360.0,87344.0,0.0114623]
[1767020771271,7e-08,87361.0,87359.0,0.0114604]
[1767020771470,0.06104489,87393.0,87340.0,0.09736]
[1767020771672,0.0114541,87408.0,87340.0,0.09736]
[1767020771673,0.1088163,87392.0,87373.0,0.0114585]
[1767020771873,0.05784,87391.0,87364.0,0.0114598]
[1767020772083,0.09736,87390.0,87364.0,0.0114598]
[1767020772266,0.0114574,87383.0,87364.0,0.0114598]
[1767020772472,0.05784,87382.0,87368.0,0.00017167]
[1767020772872,0.05784,87382.0,87368.0,0.01163087]
[1767020773674,0.00017167,87386.0,87368.0,0.00017167]
[1767020773877,0.1552,87385.0,87376.0,0.0114582]
[1767020774081,0.05784,87384.0,87374.0,0.0114584]
[1767020774381,0.09736,87383.0,87374.0,0.0114584]
[1767020774676,0.1552,87382.0,87374.0,0.0114584]
[1767020774980,0.00784,87381.0,87374.0,0.0114584]
[1767020775179,0.00017167,87386.0,87371.0,0.0114589]
[1767020775381,0.1552,87385.0,87371.0,0.0114589]
[1767020775582,0.1552,87385.0,87369.0,0.0114591]
[1767020776278,0.1552,87385.0,87358.0,0.0114605]
[1767020776585,0.1552,87385.0,87348.0,0.0114618]
[1767020776878,0.1552,87385.0,87347.0,0.11444659]
[1767020777182,0.0114592,87369.0,87348.0,0.0114619]
[1767020777378,0.1552,87368.0,87348.0,0.0114619]
[1767020777578,0.00017167,87367.0,87349.0,0.00017167]
[1767020777880,0.0114596,87366.0,87349.0,0.00017167]
[1767020778980,0.0114599,87364.0,87340.0,0.0114629]
[1767020779675,0.0114604,87360.0,87338.0,0.0114632]
[1767020779883,0.00017167,87367.0,87329.0,0.0114643]
[1767020779884,0.0114613,87353.0,87329.0,0.0114643]
[1767020780078,0.01163337,87350.0,87332.0,0.00017167]
[1767020780282,0.09736,87349.0,87332.0,0.00017167]
[1767020780575,0.1552,87348.0,87332.0,0.01163557]
[1767020780972,0.1552,87348.0,87323.0,0.09045857]
[1767020781174,0.1552,87348.0,87318.0,0.00011404]
[1767020781482,0.1552,87348.0,87324.0,0.11449376]
[1767020781672,0.1666619,87348.0,87323.0,0.0114652]
[1767020781870,0.0114621,87348.0,87319.0,0.11450097]
[1767020782073,0.1552,87347.0,87325.0,0.00017167]
[1767020782377,0.1552,87347.0,87308.0,0.01375785]
[1767020782574,0.1552,87347.0,87313.0,0.0114665]
[1767020782968,0.0114634,87337.0,87313.0,0.0114665]
[1767020783177,0.0114636,87335.0,87309.0,0.0114669]
[1767020783377,0.00017177,87331.0,87313.0,0.00011466]
[1767020783572,0.15524,87330.0,87313.0,0.00011466]
[1767020784673,0.1667044,87330.0,87313.0,0.00011466]
[1767020784882,0.0114647,87327.0,87313.0,0.00011466]
[1767020785483,0.15524,87330.0,87313.0,0.00011466]
[1767020785782,0.0114644,87329.0,87321.0,0.00108547]
[1767020786579,0.0114644,87329.0,87313.0,0.00011466]
[1767020786785,0.15524,87330.0,87313.0,0.00011466]
[1767020786984,0.011466,87317.0,87291.0,0.0114693]
[1767020787185,0.15524,87316.0,87294.0,0.011469]
[1767020787386,0.15524,87316.0,87286.0,0.01121819]
[1767020787387,0.1088663,87315.0,87292.0,0.11451474]
[1767020787575,0.1088663,87315.0,87282.0,0.0974]
[1767020787576,0.0974,87315.0,87286.0,0.09059769]
[1767020787777,0.0114671,87309.0,87282.0,0.0974]
[1767020787983,0.00017177,87304.0,87283.0,0.11454228]
[1767020788181,0.00017177,87304.0,87281.0,0.01121934]
[1767020788378,0.00017177,87304.0,87283.0,0.12602646]
[1767020788573,0.09768,87303.0,87283.0,0.12602646]
[1767020788889,0.09768,87303.0,87284.0,0.11455606]
[1767020789183,0.00017177,87304.0,87284.0,0.11455606]
[1767020789387,0.00017177,87304.0,87289.0,0.0114697]
[1767020789684,0.06104489,87339.0,87284.0,0.0974]
[1767020789893,0.0114659,87318.0,87284.0,0.0974]
[1767020790189,0.0114669,87311.0,87285.0,0.0114701]
[1767020790487,0.15296,87317.0,87285.0,0.0114701]
[1767020790488,0.0114671,87309.0,87285.0,0.0114701]
[1767020790680,0.0114671,87309.0,87284.0,0.0114703]
[1767020790990,0.00017177,87305.0,87288.0,0.00017177]
[1767020791490,0.15528,87304.0,87288.0,0.00017177]
[1767020791689,0.05788,87303.0,87288.0,0.00017177]
[1767020791990,0.15528,87303.0,87288.0,0.00017177]
[1767020792179,0.15528,87303.0,87295.0,0.00101903]
[1767020792380,0.15528,87303.0,87288.0,0.00017177]
[1767020793682,0.00017177,87305.0,87288.0,0.00017177]
[1767020793882,0.15528,87304.0,87288.0,0.00017177]
[1767020795090,0.15528,87304.0,87281.0,0.0114706]
[1767020795286,0.011468,87302.0,87280.0,0.00012191]
[1767020795482,0.15528,87304.0,87280.0,0.00012191]
[1767020795483,0.15528,87304.0,87280.0,0.01159271]
[1767020795792,0.15528,87304.0,87280.0,0.00012191]
[1767020796189,0.15528,87304.0,87286.0,0.0114699]
[1767020796394,0.15528,87304.0,87283.0,0.0114704]
[1767020797288,0.15528,87304.0,87285.0,0.0114701]
[1767020797591,0.0114679,87303.0,87282.0,0.0114705]
[1767020798190,0.1667477,87304.0,87280.0,0.00012191]
[1767020798396,0.15528,87304.0,87285.0,0.0114701]
[1767020798584,0.00017177,87305.0,87284.0,0.0114702]
[1767020798787,0.15532,87304.0,87284.0,0.0114702]
[1767020798994,0.15532,87303.0,87287.0,0.0114699]
[1767020799386,0.15532,87303.0,87284.0,0.0114703]
[1767020799584,0.1667878,87303.0,87284.0,0.0114703]
[1767020799794,0.15532,87303.0,87293.0,0.00101835]
[1767020800091,0.011468,87302.0,87282.0,0.0114705]
[1767020800292,0.011468,87302.0,87281.0,0.0114706]
[1767020800691,0.011468,87302.0,87280.0,0.01159271]
[1767020800896,0.15532,87301.0,87280.0,0.01159271]
[1767020801098,0.15532,87301.0,87280.0,0.00012191]
[1767020801593,0.00017177,87305.0,87280.0,0.00012191]
[1767020801795,0.00896,87304.0,87296.0,0.0114687]
[1767020801995,0.1064,87304.0,87296.0,0.0114687]
[1767020802196,0.0114645,87329.0,87284.0,0.0114702]
[1767020802397,0.15532,87328.0,87304.0,0.0114676]
[1767020802590,0.0114648,87326.0,87293.0,0.011469]
[1767020802892,0.00017177,87318.0,87301.0,0.00017177]
[1767020803092,0.15532,87317.0,87305.0,0.0114675]
[1767020803298,0.15532,87317.0,87301.0,0.01163977]
[1767020803489,0.15532,87317.0,87305.0,0.0114675]
[1767020803690,0.15527,87317.0,87307.0,0.0114672]
[1767020804084,0.15527,87317.0,87301.0,0.00017177]
[1767020804085,0.00228997,87338.0,87301.0,0.00017177]
[1767020804294,0.0114638,87334.0,87301.0,0.00017177]
[1767020804594,0.0114638,87334.0,87312.0,0.0114666]
[1767020804802,0.166784,87333.0,87313.0,0.0114664]
[1767020804986,0.166734,87333.0,87313.0,0.0114664]
[1767020805184,0.166734,87333.0,87301.0,0.00017177]
[1767020805185,0.00017177,87332.0,87301.0,0.00017177]
[1767020805583,0.0114642,87331.0,87310.0,0.0114668]
[1767020805787,0.00017177,87332.0,87302.0,0.11451736]
[1767020805987,0.00017177,87332.0,87323.0,0.0114652]
[1767020806199,0.00017177,87332.0,87308.0,0.09000642]
[1767020806200,0.05770823,87332.0,87317.0,0.011466]
[1767020806495,0.05770823,87332.0,87313.0,0.0114164]
[1767020806793,0.00228997,87338.0,87331.0,0.011464]
[1767020806997,0.00182241,87338.0,87322.0,0.09744]
[1767020807201,0.00182241,87338.0,87322.0,0.1089053]
[1767020807388,0.00182241,87338.0,87322.0,0.09739]
[1767020807585,0.00182241,87338.0,87327.0,0.0114646]
[1767020807786,0.00182241,87338.0,87323.0,0.0114651]
[1767020808190,0.00182241,87338.0,87322.0,0.09739]
[1767020809203,0.00182241,87338.0,87324.0,0.0114649]
[1767020810800,0.00182241,87338.0,87300.0,0.0114681]
[1767020810801,0.15532,87337.0,87300.0,0.0114681]
[1767020810995,0.0114654,87322.0,87299.0,0.0114683]
[1767020811194,0.0114654,87322.0,87291.0,0.04896]
[1767020811195,0.0114662,87316.0,87295.0,0.22341567]
[1767020811399,0.0114658,87319.0,87295.0,0.1089088]
[1767020811802,0.0114661,87317.0,87295.0,0.1089088]
[1767020812005,0.00017177,87315.0,87297.0,0.00017177]
[1767020812203,0.00017177,87315.0,87297.0,1.77e-06]
[1767020812596,0.0114665,87314.0,87297.0,1.77e-06]
[1767020812997,0.00017177,87315.0,87297.0,1.77e-06]
[1767020813800,0.0114665,87314.0,87297.0,1.77e-06]
[1767020814001,0.00017177,87315.0,87297.0,1.77e-06]
[1767020816604,0.00017177,87315.0,87298.0,0.0114684]
[1767020816813,0.00017177,87315.0,87307.0,0.0114673]
[1767020817106,0.00017177,87315.0,87298.0,0.09744]
[1767020817703,0.00017177,87315.0,87299.0,0.1145331]
[1767020817906,0.00017177,87315.0,87307.0,0.0114672]
[1767020818102,0.00017177,87315.0,87299.0,0.1145331]
[1767020818103,0.00017177,87315.0,87304.0,0.0114676]
[1767020818408,0.00017177,87315.0,87306.0,0.0114674]
[1767020818905,0.00017177,87315.0,87299.0,0.11453507]
[1767020819102,0.00017177,87315.0,87298.0,0.0114684]
[1767020819498,0.00017177,87315.0,87300.0,0.0114682]
[1767020819907,0.00017177,87315.0,87297.0,1.77e-06]
[1767020820208,0.0114672,87308.0,87297.0,1.77e-06]
[1767020820401,0.15532,87307.0,87297.0,1.77e-06]
[1767020820804,0.15532,87307.0,87280.0,0.00012191]
[1767020821310,0.15532,87307.0,87278.0,0.00224154]
[1767020821311,0.0114686,87298.0,87278.0,0.00224154]
[1767020821510,0.15532,87297.0,87278.0,0.00224154]
[1767020821812,0.01164057,87296.0,87279.0,0.00017177]
[1767020822000,0.00017177,87296.0,87279.0,0.00017177]
[1767020822203,0.00013107,87295.0,87279.0,0.00017177]
[1767020822415,0.00013107,87295.0,87276.0,0.01131791]
[1767020822710,0.00013107,87295.0,87271.0,0.011472]
[1767020823102,0.0114695,87291.0,87267.0,0.1089124]
[1767020823303,0.00013107,87295.0,87267.0,0.09744]
[1767020823515,0.00013107,87295.0,87263.0,0.011473]
[1767020823811,0.00013107,87295.0,87248.0,0.00229233]
[1767020824011,0.06104489,87294.0,87248.0,0.00229233]
[1767020824203,0.06104489,87289.0,87248.0,0.00229233]
[1767020824405,0.0114741,87256.0,87218.0,0.00229312]
[1767020824612,0.00017187,87254.0,87226.0,0.01125381]
[1767020824806,0.06104489,87279.0,87227.0,0.09065909]
[1767020825009,0.15532,87278.0,87248.0,0.011475]
[1767020825310,0.06104489,87291.0,87237.0,0.0573824]
[1767020825509,0.0114694,87292.0,87243.0,0.09744]
[1767020825715,0.0114697,87289.0,87249.0,0.1145961]
[1767020825910,0.14416,87291.0,87249.0,0.1145961]
[1767020825911,0.00017187,87278.0,87260.0,0.01164537]
[1767020826105,0.09744,87277.0,87260.0,0.01164537]
[1767020826317,0.09744,87277.0,87260.0,0.00017187]
[1767020826511,0.05805187,87278.0,87260.0,0.00017187]
[1767020826512,0.00017187,87278.0,87260.0,0.00017187]
[1767020826712,0.00012187,87278.0,87260.0,0.00017187]
[1767020826913,0.01160254,87288.0,87265.0,0.0114728]
[1767020827113,0.05788,87285.0,87265.0,0.0114728]
[1767020827502,0.00013274,87288.0,87271.0,0.011472]
[1767020827707,0.00013274,87288.0,87270.0,0.0114721]
[1767020827911,0.00030461,87288.0,87270.0,0.0114721]
[1767020828510,0.0114706,87282.0,87267.0,0.09744]
[1767020828716,0.0114711,87279.0,87260.0,0.00017187]
[1767020828912,0.0114713,87277.0,87260.0,0.00017187]
[1767020829219,0.15536,87283.0,87260.0,0.00017187]
[1767020829220,0.0114716,87274.0,87260.0,0.00017187]
[1767020829421,0.0114716,87274.0,87260.0,0.00012187]
[1767020829617,0.0114716,87275.0,87251.0,0.09748]
[1767020829920,0.15536,87283.0,87249.0,0.09748]
[1767020830619,0.00017187,87275.0,87257.0,0.00017187]
[1767020830816,0.00017187,87275.0,87258.0,0.0114736]
[1767020831121,0.00017187,87275.0,87257.0,0.00017187]
[1767020831122,0.00017187,87275.0,87261.0,0.0114733]
[1767020831416,0.00013274,87288.0,87267.0,0.0114725]
[1767020831616,4e-08,87288.0,87262.0,0.21206954]
[1767020831810,4e-08,87288.0,87278.0,0.011471]
[1767020832119,4e-08,87288.0,87276.0,0.0114713]
[1767020832310,4e-08,87288.0,87280.0,0.0114708]
[1767020832510,4e-08,87288.0,87276.0,0.0114713]
[1767020833221,0.09748,87312.0,87289.0,0.0114696]
[1767020833414,0.011467,87310.0,87285.0,0.0114701]
[1767020833614,0.011467,87310.0,87277.0,0.11457116]
[1767020833615,0.011467,87310.0,87275.0,0.00017187]
[1767020833814,0.011467,87310.0,87286.0,0.01147]
[1767020834212,0.00017187,87306.0,87286.0,0.01147]
[1767020834726,9.306e-05,87307.0,87292.0,0.0114692]
[1767020835216,1e-08,87308.0,87289.0,0.09748]
[1767020835721,7e-08,87307.0,87290.0,0.11454819]
[1767020836532,7e-08,87307.0,87294.0,0.011469]
[1767020836836,7e-08,87307.0,87289.0,0.09748]
[1767020837037,7e-08,87307.0,87298.0,0.0114684]
[1767020837440,7e-08,87307.0,87294.0,0.00017187]
[1767020837441,7e-08,87307.0,87306.0,0.0114674]
[1767020837632,0.09748,87346.0,87317.0,0.0114659]
[1767020837828,0.0114645,87329.0,87299.0,0.11454425]
[1767020838023,0.0114639,87333.0,87309.0,0.011467]
[1767020838228,0.0114639,87333.0,87310.0,0.09748]
[1767020838428,0.01328571,87338.0,87310.0,0.09748]
[1767020838739,0.00017177,87333.0,87315.0,0.00017177]
[1767020838941,0.01163577,87333.0,87315.0,0.00017177]
[1767020839525,0.0114661,87316.0,87315.0,7e-08]
[1767020839732,0.00017177,87333.0,87311.0,0.01145]
[1767020839733,0.0114651,87324.0,87311.0,0.00173903]
[1767020839933,0.00017177,87333.0,87290.0,0.06429365]
[1767020840138,0.0114655,87321.0,87294.0,0.011469]
[1767020840323,0.011464,87332.0,87298.0,0.11451605]
[1767020840324,0.20840835,87330.0,87298.0,0.11451605]
[1767020840528,0.0114654,87322.0,87296.0,0.0114687]
[1767020840929,0.011466,87317.0,87300.0,0.00017177]
[1767020841539,0.0114661,87317.0,87301.0,0.11453769]
[1767020841835,0.00017177,87318.0,87300.0,0.00017177]
[1767020842040,1e-08,87338.0,87302.0,0.09744]
[1767020842233,0.09744,87373.0,87303.0,0.04101343]
[1767020842430,0.09744,87373.0,87352.0,0.0114613]
[1767020842629,0.09744,87373.0,87356.0,0.0114608]
[1767020842630,8e-08,87368.0,87356.0,0.0114608]
[1767020842827,8e-08,87368.0,87353.0,0.0114612]
[1767020843036,8e-08,87368.0,87354.0,0.09744]
[1767020843444,8e-08,87368.0,87339.0,0.06397147]
[1767020843445,0.01145948,87368.0,87341.0,0.09744]
[1767020843745,0.0114607,87358.0,87341.0,0.09744]
[1767020844133,0.0114622,87346.0,87299.0,0.04101343]
[1767020844338,0.0114616,87351.0,87300.0,0.60740835]
[1767020844539,0.0114613,87353.0,87326.0,0.11446755]
[1767020844739,0.0114613,87353.0,87327.0,0.15536]
[1767020844934,8e-08,87368.0,87327.0,0.1668246]
[1767020845135,8e-08,87368.0,87327.0,0.15536]
[1767020845434,8e-08,87368.0,87328.0,0.11451802]
[1767020845632,0.01163257,87357.0,87339.0,0.00017177]
[1767020845828,8e-08,87368.0,87339.0,0.05805177]
[1767020846034,8e-08,87368.0,87348.0,0.0114619]
[1767020846234,8e-08,87368.0,87349.0,0.09744]
[1767020846433,8e-08,87368.0,87350.0,0.05788]
[1767020847148,0.00011407,87368.0,87350.0,0.05788]
[1767020847641,0.09744,87381.0,87351.0,0.11447017]
[1767020847938,0.09744,87381.0,87356.0,0.0114608]
[1767020848242,0.011457,87386.0,87359.0,0.00916886]
[1767020848442,0.011457,87386.0,87360.0,0.15532]
[1767020848643,0.09744,87388.0,87364.0,0.00017177]
[1767020848837,0.0114572,87385.0,87364.0,0.00017177]
[1767020849035,0.09744,87388.0,87364.0,0.00017177]
[1767020849244,0.1088968,87388.0,87364.0,7e-08]
[1767020849442,0.09744,87388.0,87364.0,0.13240007]
[1767020849744,0.0114579,87379.0,87364.0,0.13240007]
[1767020849942,0.0114574,87383.0,87364.0,0.13240007]
[1767020850134,0.20840835,87380.0,87356.0,0.15528]
[1767020850331,0.0114587,87373.0,87347.0,0.011462]
[1767020850536,0.20840835,87390.0,87345.0,0.00214]
[1767020850537,0.0572859,87385.0,87345.0,0.00214]
[1767020850733,0.20840835,87360.0,87335.0,0.0974]
[1767020851040,0.00017177,87356.0,87339.0,0.00017177]
[1767020852542,0.0114611,87355.0,87339.0,0.00017177]
[1767020852940,0.0114615,87351.0,87339.0,0.00017177]
[1767020853141,0.0114622,87346.0,87322.0,0.0114653]
[1767020853341,0.00017177,87356.0,87322.0,0.0114653]
[1767020853342,0.0114618,87350.0,87325.0,0.0114649]
[1767020853545,0.20840835,87350.0,87327.0,0.11448524]
[1767020853955,0.0114613,87353.0,87328.0,0.0114645]
[1767020854247,0.00017177,87356.0,87337.0,0.0114633]
[1767020854452,0.00017177,87356.0,87338.0,0.0114632]
[1767020854842,0.00017177,87356.0,87341.0,0.0114628]
[1767020855047,0.0114581,87378.0,87349.0,0.0114618]
[1767020855341,0.11904,87377.0,87352.0,0.0114614]
[1767020855541,0.0114591,87370.0,87352.0,0.0974]
[1767020856141,0.0114591,87370.0,87352.0,0.09757177]
[1767020856352,0.01163087,87370.0,87352.0,0.09757177]
[1767020856746,0.0114595,87367.0,87352.0,0.09757177]
[1767020856946,0.00017177,87370.0,87352.0,0.10903317]
[1767020857250,0.00017177,87370.0,87352.0,0.10903307]
[1767020857251,1.77e-06,87370.0,87352.0,0.10903307]
[1767020857441,1.77e-06,87370.0,87352.0,0.09757177]
[1767020858251,1.77e-06,87370.0,87353.0,0.0114612]
[1767020858649,1.77e-06,87370.0,87352.0,0.09757177]
[1767020859053,1.77e-06,87370.0,87356.0,0.0114609]
[1767020859545,1.77e-06,87370.0,87352.0,0.10903307]
[1767020859742,1.77e-06,87370.0,87352.0,0.09757177]
[1767020859944,1.77e-06,87370.0,87355.0,0.0114609]
[1767020860345,1.77e-06,87370.0,87352.0,0.09757177]
[1767020860755,1.77e-06,87370.0,87366.0,0.0114596]
[1767020861053,0.00228839,87398.0,87372.0,0.0114588]
[1767020861054,0.0114559,87394.0,87372.0,0.0114588]
[1767020861354,0.0114559,87394.0,87371.0,0.05788]
[1767020861355,0.0114563,87392.0,87371.0,0.05788]
[1767020861947,0.0114566,87389.0,87371.0,0.05788]
[1767020862251,0.0114566,87389.0,87371.0,0.05805165]
[1767020862449,0.0114562,87392.0,87371.0,0.05805165]
[1767020863546,0.0114565,87390.0,87371.0,0.05805165]
[1767020864144,0.0974,87394.0,87371.0,0.05805165]
[1767020864552,0.01374379,87398.0,87376.0,0.0114582]
[1767020864748,0.0114561,87393.0,87371.0,0.05805165]
[1767020865461,0.0114561,87393.0,87371.0,0.06951045]
[1767020866046,0.0114578,87380.0,87371.0,0.05805165]
[1767020866247,0.0114576,87381.0,87372.0,0.05784]
[1767020866549,0.0114576,87381.0,87372.0,0.15524]
[1767020866753,0.0114567,87389.0,87371.0,0.05801165]
[1767020866949,0.1088567,87389.0,87371.0,0.00017165]
[1767020867152,0.0974,87389.0,87337.0,0.03067355]
[1767020867451,0.0114597,87366.0,87348.0,0.15524]
[1767020867651,0.0114597,87366.0,87323.0,0.05236317]
[1767020867652,0.0114587,87373.0,87349.0,0.15524]
[1767020867856,0.20840835,87370.0,87349.0,0.05784]
[1767020868043,0.01146,87363.0,87351.0,0.00017165]
[1767020868656,0.0114605,87360.0,87351.0,0.00017165]
[1767020869460,0.00017127,87368.0,87348.0,0.04914203]
[1767020869759,0.0114613,87354.0,87348.0,0.04914203]
[1767020870052,0.0114607,87358.0,87330.0,0.0114642]
[1767020870263,0.0114607,87358.0,87340.0,0.15541165]
[1767020870555,0.0974,87364.0,87341.0,0.05784]
[1767020872952,0.0114601,87362.0,87340.0,0.0974]
[1767020873159,0.0114601,87362.0,87339.0,6e-08]
[1767020873160,0.0114623,87345.0,87339.0,6e-08]
[1767020873849,0.0114623,87345.0,87321.0,0.0114654]
[1767020873850,0.0114632,87339.0,87315.0,0.0114662]
[1767020874052,0.00017176,87336.0,87319.0,0.0114656]
[1767020874248,0.00017176,87336.0,87322.0,0.11449245]
[1767020874458,1.76e-06,87336.0,87319.0,0.0114656]
[1767020874647,1.76e-06,87336.0,87320.0,0.11450949]
[1767020874849,8.691e-05,87335.0,87320.0,0.11450949]
[1767020875450,0.0114643,87331.0,87321.0,0.15524]
[1767020875848,0.0114643,87331.0,87307.0,0.0114673]
[1767020876052,0.0114643,87331.0,87308.0,0.15524]
[1767020876252,0.0114643,87331.0,87311.0,0.11451146]
[1767020876453,0.0114643,87331.0,87308.0,0.15524]
[1767020876858,0.0114643,87331.0,87309.0,0.12598698]
[1767020877059,0.0114643,87331.0,87311.0,0.00017176]
[1767020877472,0.0114643,87331.0,87312.0,0.15524]
[1767020877954,8.691e-05,87335.0,87315.0,0.0114661]
[1767020878150,8.691e-05,87335.0,87312.0,0.1667066]
[1767020879954,0.01155061,87335.0,87312.0,0.1667066]
[1767020880856,0.0114639,87333.0,87312.0,0.15524]
[1767020881060,8.691e-05,87335.0,87312.0,0.15524]
[1767020881256,0.20840835,87330.0,87311.0,0.00017176]
[1767020881560,0.20840835,87330.0,87310.0,0.0974]
[1767020881561,0.0114658,87319.0,87310.0,0.0974]
[1767020881761,0.0114664,87314.0,87295.0,0.06222912]
[1767020881957,0.011466,87318.0,87296.0,0.26976064]
[1767020882151,0.011466,87318.0,87293.0,8.373e-05]
[1767020882152,0.0114666,87313.0,87297.0,0.15524]
[1767020882352,0.00017176,87314.0,87297.0,0.15524]
[1767020882857,8.691e-05,87313.0,87296.0,0.05801176]
[1767020884159,0.0114667,87312.0,87296.0,0.05801176]
[1767020884361,8.691e-05,87313.0,87296.0,0.05801176]
[1767020884565,0.06127546,87355.0,87297.0,0.11454163]
[1767020884761,0.011463,87341.0,87315.0,0.0114662]
[1767020884973,0.011463,87341.0,87303.0,0.20840835]
[1767020884974,0.0114627,87343.0,87319.0,0.0114656]
[1767020885161,0.0114627,87343.0,87320.0,0.0974]
[1767020885665,0.00017176,87340.0,87323.0,0.00017176]
[1767020885860,0.0114615,87352.0,87324.0,0.05784]
[1767020886068,0.0974,87351.0,87324.0,0.05784]
[1767020886761,0.0114623,87346.0,87324.0,0.05784]
[1767020886958,0.011462,87348.0,87324.0,0.05784]
[1767020887157,0.00017176,87346.0,87324.0,0.05784]
[1767020887356,0.10212576,87404.0,87324.0,0.05784]
[1767020887357,0.0974,87362.0,87330.0,0.20840835]
[1767020887556,0.0114602,87361.0,87331.0,0.15524]
[1767020887759,0.0974,87367.0,87331.0,0.15524]
[1767020887962,0.0974,87367.0,87332.0,0.11448721]
[1767020888152,0.20840835,87360.0,87333.0,0.0974]
[1767020888351,0.00017176,87355.0,87338.0,0.00017176]
[1767020888759,0.011462,87348.0,87338.0,0.00017176]
[1767020888961,0.0114615,87352.0,87338.0,0.00017176]
[1767020889174,0.01163276,87355.0,87338.0,0.00017176]
[1767020889465,0.0114568,87388.0,87338.0,0.00017176]
[1767020889655,0.0974,87387.0,87351.0,0.0114614]
[1767020889852,0.0114583,87376.0,87352.0,0.15524]
[1767020890057,0.0114586,87374.0,87352.0,0.15524]
[1767020890256,0.05784,87386.0,87352.0,0.15524]
[1767020890457,0.0114588,87372.0,87360.0,0.00017176]
[1767020891564,0.05784,87386.0,87360.0,0.00017176]
[1767020891565,0.0114586,87374.0,87360.0,0.00017176]
[1767020891764,0.06127546,87409.0,87361.0,0.172301]
[1767020892068,0.0114575,87382.0,87362.0,0.0974]
[1767020892473,0.0114564,87391.0,87362.0,0.0974]
[1767020892763,0.0114574,87383.0,87362.0,0.0974]
[1767020893665,0.15524,87397.0,87362.0,0.0974]
[1767020894260,0.0114571,87385.0,87362.0,0.1088601]
[1767020894461,0.0114566,87389.0,87365.0,0.0114597]
[1767020894857,0.15524,87397.0,87362.0,0.0974]
[1767020895365,0.0114574,87383.0,87362.0,0.0974]
[1767020895561,0.15524,87397.0,87362.0,0.0974]
[1767020895562,0.0114569,87387.0,87362.0,0.0974]
[1767020895966,0.0114578,87380.0,87362.0,0.0974]
[1767020896164,0.0114558,87395.0,87363.0,0.15524]
[1767020897162,0.0114575,87382.0,87363.0,0.15524]
[1767020897362,0.0114581,87377.0,87363.0,0.15524]
[1767020897563,0.0114586,87374.0,87363.0,0.15524]
[1767020897763,0.011459,87371.0,87357.0,0.05784]
[1767020898064,0.0114589,87372.0,87357.0,0.05784]